bitfinex-derivatives/quotes_SOLF0:USTF0_20250522
["timestamp","ask_amount","ask_price","bid_price","bid_amount"]
[1747872250200,150.3,174.39,174.25,3.9736]
[1747872250402,150.3,174.39,174.26,1.9156]
[1747872250602,150.3,174.43,174.37,5.7326]
[1747872250805,150.3,174.43,174.32,150.3]
[1747872251002,5.7325,174.38,174.28,150.26]
[1747872251309,5.7325,174.38,174.31,0.03620144]
[1747872251310,0.04160427,174.35,174.31,0.03620144]
[1747872254415,4.27e-06,174.35,174.34,5.7337]
[1747872258912,4.27e-06,174.35,174.34,15.4187]
[1747872260810,2.0132,174.51,174.49,5.7286]
[1747872261210,1.9006,174.54,174.43,145.64]
[1747872261405,1.9377,174.59,174.43,309.64]
[1747872261612,1.9377,174.59,174.44,5.9322]
[1747872261815,0.03798945,174.53,174.5,0.03905749]
[1747872262211,5.7279,174.52,174.39,495.64]
[1747872262514,145.64,174.55,174.4,145.64]
[1747872262716,145.64,174.55,174.36,254.64]
[1747872263016,145.64,174.55,174.36,145.64]
[1747872263419,5.7301,174.45,174.44,0.03988665]
[1747872263617,5.7301,174.45,174.36,145.64]
[1747872263817,5.7306,174.44,174.36,145.64]
[1747872264218,5.7306,174.44,174.38,5.7324]
[1747872264415,2.0968,174.46,174.29,495.64]
[1747872264615,0.04032614,174.39,174.36,0.03624724]
[1747872264814,0.03649688,174.39,174.36,0.03624724]
[1747872267125,0.03649688,174.39,174.37,5.7327]
[1747872267620,0.03649688,174.39,174.36,0.03624724]
[1747872267821,0.03649688,174.39,174.38,5.7324]
[1747872269426,145.62,174.5,174.44,5.7303]
[1747872269618,145.62,174.5,174.37,1.8924]
[1747872270121,4.0952,174.51,174.46,5.7295]
[1747872270320,4.0952,174.51,174.37,1.8924]
[1747872270321,4.0952,174.51,174.42,145.6]
[1747872270522,0.03906615,174.48,174.45,0.04342496]
[1747872271021,0.03906615,174.48,174.46,5.7295]
[1747872271220,0.03906615,174.48,174.45,0.04342496]
[1747872272623,0.03906615,174.48,174.45,5.77322496]
[1747872272825,0.03906615,174.48,174.45,0.04342496]
[1747872273224,0.03906615,174.48,174.45,5.77312496]
[1747872273625,0.03906615,174.48,174.45,0.04342496]
[1747872275739,0.03906615,174.48,174.45,5.77352496]
[1747872275932,0.03906615,174.48,174.45,0.04342496]
[1747872276432,5.76826615,174.48,174.45,0.04342496]
[1747872276637,0.03906615,174.48,174.45,0.04342496]
[1747872276929,0.03906615,174.48,174.38,185.7]
[1747872277125,4.01856615,174.48,174.38,185.7]
[1747872277326,4.01856615,174.48,174.38,40.14]
[1747872277933,4.01856615,174.48,174.41,0.03336312]
[1747872278133,4.01856615,174.48,174.39,1.62744491]
[1747872278134,5.7314,174.41,174.39,1.62744491]
[1747872279336,5.76828473,174.42,174.39,1.62744491]
[1747872279532,0.03718473,174.42,174.39,1.62744491]
[1747872280031,0.03718473,174.42,174.38,40.14]
[1747872280733,0.03718473,174.42,174.41,5.7314]
[1747872283034,0.03718473,174.42,174.4,5.7316]
[1747872283536,0.03718473,174.42,174.41,5.7314]
[1747872284337,8.473e-05,174.42,174.41,5.7314]
[1747872284835,8.473e-05,174.42,174.4,5.7316]
[1747872285039,8.473e-05,174.42,174.38,185.68]
[1747872285241,8.473e-05,174.42,174.38,185.71710001]
[1747872285438,8.473e-05,174.42,174.41,5.7314]
[1747872285742,8.473e-05,174.42,174.38,40.17710001]
[1747872286542,8.473e-05,174.42,174.41,5.7314]
[1747872287442,8.473e-05,174.42,174.4,5.7316]
[1747872287639,8.473e-05,174.42,174.38,40.17710001]
[1747872287940,8.473e-05,174.42,174.41,5.7314]
[1747872290538,8.473e-05,174.42,174.41,120.4114]
[1747872291042,8.473e-05,174.42,174.41,114.6714]
[1747872292233,8.473e-05,174.42,174.41,116.10424087]
[1747872292528,8.473e-05,174.42,174.41,120.4114]
[1747872292931,8.473e-05,174.42,174.41,5.7314]
[1747872293142,8.473e-05,174.42,174.41,260.1714]
[1747872294145,8.473e-05,174.42,174.41,265.9114]
[1747872294333,8.473e-05,174.42,174.41,260.1714]
[1747872295346,8.473e-05,174.42,174.41,262.81473346]
[1747872295942,8.473e-05,174.42,174.41,260.1714]
[1747872298251,8.473e-05,174.42,174.41,260.1514]
[1747872301643,8.473e-05,174.42,174.41,265.8914]
[1747872301846,11.4428,174.72,174.41,265.8914]
[1747872301847,2.0925,174.61,174.41,424.16]
[1747872302035,5.7239,174.64,174.41,271.73]
[1747872302237,145.5,174.69,174.41,271.73]
[1747872302540,5.7241,174.64,174.59,5.7254]
[1747872302744,5.7241,174.64,174.6,0.03718474]
[1747872302745,0.03760732,174.63,174.6,0.03718474]
[1747872303445,0.03760732,174.63,174.53,145.48]
[1747872303745,145.48,174.64,174.48,1.8888]
[1747872303946,145.48,174.64,174.54,5.7269]
[1747872304143,5.7256,174.59,174.54,5.7269]
[1747872304346,145.48,174.64,174.51,145.48]
[1747872304537,0.04299726,174.59,174.51,145.48]
[1747872305042,0.04299726,174.59,174.52,5.7275]
[1747872305241,0.04299726,174.59,174.51,145.48]
[1747872305763,0.04299726,174.59,174.49,145.46]
[1747872305941,145.48,174.64,174.49,145.46]
[1747872305942,0.0408475,174.56,174.49,145.46]
[1747872306137,0.0408475,174.56,174.55,5.7268]
[1747872308052,0.0408475,174.56,174.49,145.46]
[1747872310253,5.7673475,174.56,174.51,5.7278]
[1747872310652,0.0408475,174.56,174.52,5.7276]
[1747872310847,0.0408475,174.56,174.49,145.46]
[1747872311154,0.0408475,174.56,174.53,5.7272]
[1747872311551,0.0408475,174.56,174.49,145.46]
[1747872312653,0.0408475,174.56,174.45,145.24]
[1747872312853,0.03699837,174.52,174.45,145.24]
[1747872313045,0.03699837,174.52,174.5,5.7282]
[1747872313547,0.03699837,174.52,174.45,145.24]
[1747872313947,0.03699837,174.52,174.44,13.97]
[1747872314151,5.7284,174.51,174.44,13.97]
[1747872314453,6.01409837,174.52,174.44,10.8256]
[1747872314653,6.01409837,174.52,174.46,5.7297]
[1747872314850,145.24,174.51,174.46,5.7297]
[1747872315049,145.24,174.51,174.44,10.8256]
[1747872315255,5.7288,174.49,174.44,50.9456]
[1747872315462,0.0409379,174.48,174.44,31.8643]
[1747872315756,5.7299,174.46,174.44,31.8643]
[1747872315955,145.24,174.45,174.44,31.8643]
[1747872316157,145.24,174.45,174.42,36.29]
[1747872317758,0.0409379,174.48,174.42,36.29]
[1747872319662,0.0409379,174.48,174.44,5.7302]
[1747872319865,0.0409379,174.48,174.42,36.29]
[1747872320057,0.0409379,174.48,174.43,5.9757]
[1747872320363,0.0409379,174.48,174.47,5.7294]
[1747872320559,145.26,174.55,174.44,145.26]
[1747872321263,145.26,174.55,174.51,5.7279]
[1747872321462,145.26,174.55,174.44,145.26]
[1747872321665,0.04114157,174.51,174.48,0.03781878]
[1747872321963,0.04114157,174.51,174.49,1.43268471]
[1747872322366,145.26,174.5,174.49,1.39078471]
[1747872322566,145.26,174.5,174.42,36.29]
[1747872323666,5.7303,174.45,174.42,36.29]
[1747872323860,145.32223117,174.45,174.42,36.29]
[1747872325565,5.7304,174.44,174.42,36.29]
[1747872325764,145.32223117,174.45,174.42,36.29]
[1747872326160,151.06223117,174.45,174.42,36.29]
[1747872326361,145.32223117,174.45,174.42,36.29]
[1747872326866,0.04223117,174.45,174.42,36.29]
[1747872327070,145.34223117,174.45,174.42,36.29]
[1747872328668,5.7304,174.44,174.42,36.29]
[1747872328969,145.34223117,174.45,174.38,0.86]
[1747872329767,5.7305,174.44,174.4,5.7317]
[1747872329971,145.34223117,174.45,174.38,0.86]
[1747872330766,5.7314,174.42,174.38,0.86]
[1747872331069,145.34223117,174.45,174.38,0.86]
[1747872331464,5.7312,174.42,174.38,0.86]
[1747872332371,145.34223117,174.45,174.38,0.86]
[1747872333572,5.7311,174.42,174.38,0.86]
[1747872334272,5.7311,174.42,174.38,6.5924]
[1747872334469,5.7311,174.42,174.38,0.86]
[1747872334665,145.34223117,174.45,174.38,0.86]
[1747872335069,5.732,174.4,174.38,0.86]
[1747872335264,0.03664444,174.41,174.38,0.86]
[1747872335870,5.732,174.39,174.38,0.86]
[1747872336268,0.03664444,174.41,174.38,0.86]
[1747872337178,0.03664444,174.41,174.4,5.7317]
[1747872337378,0.03664444,174.41,174.38,0.86]
[1747872337875,0.03664444,174.41,174.38,6.5921]
[1747872338075,0.03664444,174.41,174.38,0.86]
[1747872338775,0.03664444,174.41,174.39,1.43365137]
[1747872339177,0.03664444,174.41,174.39,7.16545137]
[1747872339377,0.03664444,174.41,174.39,1.43365137]
[1747872339870,0.03664444,174.41,174.39,5.7318]
[1747872340176,0.03664444,174.41,174.38,0.86]
[1747872340377,0.03664444,174.41,174.39,5.732]
[1747872341178,0.03664444,174.41,174.4,5.7317]
[1747872341979,145.34,174.48,174.44,5.7304]
[1747872342173,145.34,174.48,174.38,4.9678]
[1747872342975,0.04087243,174.45,174.42,5.731]
[1747872343284,0.04087243,174.45,174.41,0.03976356]
[1747872343791,0.04087243,174.45,174.44,5.7304]
[1747872344387,0.04087243,174.45,174.43,5.7306]
[1747872344588,0.04087243,174.45,174.41,0.03976356]
[1747872344780,0.04087243,174.45,174.43,5.7306]
[1747872345785,0.04087243,174.45,174.44,5.7304]
[1747872345991,145.04,174.52,174.43,145.04]
[1747872346289,145.04,174.52,174.38,4.9678]
[1747872346589,145.04,174.52,174.42,5.7308]
[1747872346789,145.04,174.52,174.38,4.9678]
[1747872346986,0.04269606,174.47,174.43,0.03863064]
[1747872347184,5.73,174.46,174.43,0.03863064]
[1747872347891,0.04269606,174.47,174.43,0.03863064]
[1747872348092,145.08269606,174.47,174.43,0.03863064]
[1747872348497,145.08269606,174.47,174.44,1.43324044]
[1747872349089,145.08269606,174.47,174.43,0.03863064]
[1747872349481,145.08269606,174.47,174.43,5.76933064]
[1747872349689,145.08269606,174.47,174.43,0.03863064]
[1747872349889,0.04269606,174.47,174.43,0.03863064]
[1747872350084,0.04269606,174.47,174.44,5.7301]
[1747872350289,0.04269606,174.47,174.43,0.03863064]
[1747872350489,0.04269606,174.47,174.44,1.4332527]
[1747872350691,0.04269606,174.47,174.44,7.1634527]
[1747872350895,0.04269606,174.47,174.44,1.4332527]
[1747872351895,0.04269606,174.47,174.43,0.03863064]
[1747872352496,0.04269606,174.47,174.46,5.7297]
[1747872352798,0.04269606,174.47,174.43,0.03863064]
[1747872354301,0.04269606,174.47,174.44,1.43320235]
[1747872354898,0.04269606,174.47,174.43,0.03863064]
[1747872355596,5.7304,174.44,174.43,0.03863064]
[1747872356599,5.7301,174.45,174.43,0.03863064]
[1747872356991,5.7304,174.44,174.43,0.03863064]
[1747872359102,150.75,174.46,174.43,0.03863064]
[1747872359893,145.02,174.46,174.43,0.03863064]
[1747872360589,145.04,174.53,174.43,0.03863064]
[1747872360800,150.7672,174.54,174.43,164.0]
[1747872360993,14.33504992,174.55,174.43,164.0]
[1747872361393,145.04,174.57,174.43,164.0]
[1747872361599,0.04178523,174.52,174.48,0.04366942]
[1747872361799,0.04178523,174.52,174.49,5.7287]
[1747872362102,145.08178523,174.52,174.48,0.04366942]
[1747872362493,150.80968523,174.52,174.48,0.04366942]
[1747872363098,145.08178523,174.52,174.48,0.04366942]
[1747872363901,5.7288,174.49,174.48,0.04366942]
[1747872364093,145.08178523,174.52,174.48,0.04366942]
[1747872364802,5.7288,174.49,174.48,0.04366942]
[1747872366992,5.7288,174.49,174.48,6.942e-05]
[1747872367197,11.4688,174.49,174.48,6.942e-05]
[1747872367806,5.7311,174.42,174.41,18.04486942]
[1747872367995,145.02,174.42,174.27,146.9346]
[1747872368195,145.02,174.42,174.28,3.9282]
[1747872368904,0.04192222,174.37,174.33,0.04154362]
[1747872369105,145.04,174.36,174.25,5.7366]
[1747872369305,5.7346,174.32,174.22,2.0753]
[1747872369502,145.04,174.31,174.22,2.0753]
[1747872369807,145.04,174.3,174.18,145.04]
[1747872369999,145.04,174.29,174.18,145.04]
[1747872370199,0.03958287,174.26,174.22,0.0364512]
[1747872370402,0.0440445,174.26,174.22,0.03811901]
[1747872373207,0.0440445,174.26,174.23,5.737]
[1747872373396,0.0440445,174.26,174.22,0.03811901]
[1747872373797,0.0440445,174.26,174.25,5.7366]
[1747872374205,0.0440445,174.26,174.22,0.03811901]
[1747872375706,148.26,174.33,174.22,0.03811901]
[1747872375911,580.7799416,174.5,174.2,14.35]
[1747872376210,5.7314,174.42,174.2,14.35]
[1747872376409,148.26,174.41,174.3,5.7348]
[1747872376608,148.26,174.4,174.27,148.26]
[1747872376800,148.26,174.39,174.28,3.9752]
[1747872377112,496.67842203,174.5,174.32,0.03981487]
[1747872377312,257.26,174.49,174.33,148.26]
[1747872377506,257.26,174.49,174.34,5.7337]
[1747872377910,257.26,174.49,174.32,148.26]
[1747872378211,0.03776559,174.42,174.39,0.04133023]
[1747872378412,148.30169963,174.42,174.39,0.04133023]
[1747872378711,0.04169963,174.42,174.39,0.04133023]
[1747872379513,0.04169963,174.42,174.4,5.7317]
[1747872380108,0.04169963,174.42,174.39,0.04133023]
[1747872382411,148.24,174.49,174.39,0.04133023]
[1747872382613,148.24,174.49,174.38,2.0837]
[1747872383310,0.04380675,174.45,174.42,0.03727229]
[1747872383614,148.24,174.44,174.42,0.03727229]
[1747872384227,153.9707,174.44,174.42,0.03727229]
[1747872384405,148.24,174.44,174.42,0.03727229]
[1747872386917,153.9704,174.44,174.42,0.03727229]
[1747872387215,148.24,174.44,174.42,0.03727229]
[1747872389421,153.9705,174.44,174.42,0.03727229]
[1747872389716,148.24,174.44,174.42,0.03727229]
[1747872390121,5.7307,174.43,174.42,0.03727229]
[1747872393017,148.24,174.44,174.33,1.9182]
[1747872393420,5.7324,174.38,174.33,1.9182]
[1747872393615,148.24,174.39,174.32,0.07]
[1747872393820,0.03632173,174.37,174.34,0.03648759]
[1747872394016,148.24,174.36,174.32,0.07]
[1747872394221,148.24,174.36,174.21,148.24]
[1747872394222,148.24,174.36,174.22,1.9151]
[1747872394420,148.24,174.36,174.17,1.9242]
[1747872394817,272.24,174.36,174.17,1.9242]
[1747872395022,0.03638227,174.3,174.29,5.042e-05]
[1747872395212,148.24,174.3,174.28,0.04191079]
[1747872395418,0.03888104,174.31,174.24,3.28396653]
[1747872395614,257.26,174.3,174.2,14.35]
[1747872396317,0.03775172,174.27,174.23,0.04235715]
[1747872396517,5.737,174.24,174.23,0.04235715]
[1747872396723,153.997,174.24,174.23,0.04235715]
[1747872397517,0.03775172,174.27,174.23,0.04235715]
[1747872397722,148.26,174.26,174.23,0.04235715]
[1747872397923,5.737,174.24,174.23,0.04235715]
[1747872401324,148.26,174.26,174.23,0.04235715]
[1747872401924,5.737,174.24,174.23,0.04235715]
[1747872404229,0.03775172,174.27,174.23,0.04235715]
[1747872404430,145.16,174.26,174.23,0.04235715]
[1747872409636,5.737,174.24,174.23,0.04235715]
[1747872411539,5.737,174.24,174.23,5.715e-05]
[1747872412327,5.737,174.24,174.19,5.32385715]
[1747872412328,5.7383,174.2,174.19,5.32385715]
[1747872412534,5.7383,174.2,174.15,5.7399]
[1747872412535,145.16,174.2,174.15,5.7399]
[1747872412740,145.16,174.2,174.12,2.052]
[1747872413440,0.04076722,174.18,174.12,2.052]
[1747872414039,0.04076722,174.18,174.15,5.7396]
[1747872414436,0.04076722,174.18,174.16,1.43557946]
[1747872414640,145.18,174.24,174.16,1.43557946]
[1747872414840,145.18,174.24,174.17,1.8896]
[1747872415036,150.9171,174.24,174.18,5.7387]
[1747872415437,150.9171,174.24,174.17,1.8896]
[1747872415639,0.04226505,174.22,174.19,0.04055679]
[1747872416035,0.04226505,174.22,174.19,5.77915679]
[1747872416237,0.04226505,174.22,174.19,0.04055679]
[1747872418648,5.7383,174.2,174.19,0.04055679]
[1747872419042,0.04226505,174.22,174.19,0.04055679]
[1747872420331,5.7382,174.21,174.19,0.04055679]
[1747872420640,0.04226505,174.22,174.19,0.04055679]
[1747872421443,5.7383,174.2,174.19,0.04055679]
[1747872424645,5.7383,174.2,174.19,5.679e-05]
[1747872425244,11.4783,174.2,174.19,5.679e-05]
[1747872426347,5.738,174.21,174.19,5.679e-05]
[1747872426544,0.04226505,174.22,174.19,5.679e-05]
[1747872427351,135.7581,174.24,174.19,5.679e-05]
[1747872427552,660.95918003,174.28,174.19,5.679e-05]
[1747872427850,640.88,174.28,174.19,5.73865679]
[1747872428038,640.88,174.28,174.19,5.679e-05]
[1747872428240,0.0401405,174.25,174.19,5.679e-05]
[1747872429150,5.7375,174.23,174.19,5.679e-05]
[1747872429349,150.9175,174.23,174.19,5.679e-05]
[1747872430251,5.7377,174.22,174.19,5.679e-05]
[1747872430753,150.9173,174.23,174.19,5.679e-05]
[1747872430952,145.18,174.23,174.19,5.679e-05]
[1747872432053,5.7379,174.22,174.19,5.679e-05]
[1747872432254,145.18,174.23,174.19,5.679e-05]
[1747872433552,5.7383,174.2,174.19,5.679e-05]
[1747872433753,0.03739043,174.21,174.19,5.679e-05]
[1747872434651,5.7383,174.2,174.19,5.679e-05]
[1747872437249,11.4783,174.2,174.19,5.679e-05]
[1747872437449,13.5693,174.2,174.19,5.679e-05]
[1747872437851,5.7412,174.11,174.1,6.02]
[1747872438054,150.8012,174.11,174.1,6.02]
[1747872438349,5.7419,174.09,174.08,2.935e-05]
[1747872439157,5.7422,174.08,174.07,0.0424283]
[1747872439661,0.04027267,174.1,174.07,0.0424283]
[1747872439965,145.06,174.13,174.07,0.0424283]
[1747872440351,145.06,174.13,174.07,2.0133283]
[1747872441065,0.03998603,174.12,174.07,2.0133283]
[1747872441853,145.1,174.17,174.08,1.9048]
[1747872442050,5.7396,174.16,174.09,5.7418]
[1747872442462,145.1,174.17,174.1,5.7415]
[1747872442857,0.04024275,174.15,174.12,0.0394778]
[1747872443462,5.7406,174.13,174.12,0.0394778]
[1747872444574,0.04024275,174.15,174.02,2.0043]
[1747872444759,145.1,174.17,174.02,2.0043]
[1747872445258,145.1,174.17,174.02,9.81]
[1747872445460,0.04062265,174.11,174.08,0.03932103]
[1747872445763,145.1,174.1,174.08,0.03932103]
[1747872445970,5.7422,174.09,174.08,0.03932103]
[1747872447956,5.7422,174.09,174.08,2.103e-05]
[1747872449565,114.9022,174.09,174.08,2.103e-05]
[1747872450865,120.6422,174.09,174.08,2.103e-05]
[1747872453358,5.7442,174.02,174.01,66.42004192]
[1747872453555,150.9042,174.02,174.01,66.42004192]
[1747872457368,150.9042,174.02,174.01,57.67004192]
[1747872457567,168.13,174.02,173.62,10.8496408]
[1747872457866,11.4899,174.0,173.76,7.7983]
[1747872458064,124.0,173.99,173.76,2.0458]
[1747872458264,129.735,173.99,173.64,1.00138122]
[1747872458467,0.04327845,173.86,173.65,3.9334]
[1747872458664,0.03816577,173.79,173.65,3.9334]
[1747872458860,145.2,173.78,173.56,145.2]
[1747872459167,0.04425717,173.76,173.64,1.9114]
[1747872459367,145.2,173.75,173.57,2.022]
[1747872459573,145.2,173.75,173.58,1.9114]
[1747872459761,605.86,173.74,173.58,1.9114]
[1747872460864,5.7548,173.7,173.59,5.7582]
[1747872461064,150.9548,173.7,173.58,1.9114]
[1747872461469,150.9548,173.7,173.69,38.41356819]
[1747872461669,150.9548,173.7,173.69,29.29666819]
[1747872463171,150.9548,173.7,173.69,10.09166819]
[1747872463371,150.9548,173.7,173.69,6.819e-05]
[1747872465567,156.7148,173.7,173.69,6.819e-05]
[1747872467773,150.9548,173.7,173.69,6.819e-05]
[1747872469177,5.7574,173.62,173.58,1.9114]
[1747872469376,145.16,173.61,173.58,1.9114]
[1747872470775,150.9178,173.61,173.58,1.9114]
[1747872471378,5.7581,173.6,173.58,1.9114]
[1747872472079,145.16,173.61,173.58,1.9114]
[1747872475297,0.04254673,173.62,173.58,1.9114]
[1747872475497,151.03994673,173.62,173.58,1.9114]
[1747872476194,145.28254673,173.62,173.58,1.9114]
[1747872478299,0.04254673,173.62,173.58,1.9114]
[1747872478597,145.26,173.68,173.58,1.9114]
[1747872478797,5.7562,173.66,173.61,5.7577]
[1747872479198,145.26,173.68,173.58,1.9114]
[1747872479399,0.03811284,173.65,173.61,0.04341359]
[1747872480198,125.02799406,173.75,173.61,0.04341359]
[1747872480398,5.7547,173.71,173.64,5.7564]
[1747872480599,145.26,173.73,173.65,2.0889]
[1747872481198,0.04081126,173.71,173.67,0.04093692]
[1747872481696,1.00233302,173.84,173.67,0.04093692]
[1747872481905,49.38234507,173.75,173.67,0.04093692]
[1747872482197,26.83804507,173.75,173.74,5.7534]
[1747872482402,85.40105634,173.77,173.7,145.26]
[1747872482608,0.04004454,173.75,173.72,0.03943244]
[1747872483208,0.04004454,173.75,173.74,5.7534]
[1747872483501,145.26,173.83,173.72,5.79943244]
[1747872483698,145.26,173.83,173.7,145.26]
[1747872484603,0.04354047,173.78,173.75,0.04306974]
[1747872485104,4.047e-05,173.78,173.77,5.7524]
[1747872485500,4.047e-05,173.78,173.77,11.5124]
[1747872485906,4.047e-05,173.78,173.76,5.7527]
[1747872486100,4.047e-05,173.78,173.75,145.30306974]
[1747872486300,4.047e-05,173.78,173.76,5.7526]
[1747872486701,4.047e-05,173.78,173.75,0.04306974]
[1747872486899,5.75224047,173.78,173.75,0.04306974]
[1747872487310,5.7524,173.77,173.75,0.04306974]
[1747872487710,4.047e-05,173.78,173.75,0.04306974]
[1747872488109,5.7524,173.77,173.75,0.04306974]
[1747872488611,145.22004047,173.78,173.75,0.04306974]
[1747872488910,5.7527,173.76,173.75,0.04306974]
[1747872489110,145.22004047,173.78,173.75,0.04306974]
[1747872489405,145.20004047,173.78,173.52,497.46]
[1747872489598,145.2,173.78,173.53,254.6]
[1747872489800,5.7557,173.68,173.62,5.7571]
[1747872489999,5.7557,173.68,173.58,145.2]
[1747872490204,145.2,173.71,173.58,145.2]
[1747872490405,0.04014322,173.66,173.63,0.03938978]
[1747872491111,0.04014322,173.66,173.65,5.7564]
[1747872492816,0.04014322,173.66,173.63,0.03938978]
[1747872493117,5.7567,173.64,173.63,0.03938978]
[1747872496513,5.7583,173.6,173.54,5.76]
[1747872496712,144.98,173.63,173.53,145.2]
[1747872497417,0.03892147,173.6,173.56,0.04006044]
[1747872497718,0.03986281,173.6,173.56,0.03626997]
[1747872498813,0.03986281,173.6,173.57,5.759]
[1747872499020,0.03986281,173.6,173.56,0.03626997]
[1747872499519,0.03986281,173.6,173.58,5.7586]
[1747872499717,0.00166281,173.6,173.56,0.03626997]
[1747872500218,0.00166281,173.6,173.59,5.7584]
[1747872500620,0.00166281,173.6,173.59,11.5184]
[1747872501414,0.00166281,173.6,173.59,5.7584]
[1747872501616,0.00166281,173.6,173.59,11.5184]
[1747872502524,0.00166281,173.6,173.59,166.47664101]
[1747872504315,0.00166281,173.6,173.59,160.71664101]
[1747872504513,0.00166281,173.6,173.59,166.47664101]
[1747872508526,145.0,173.74,173.59,166.47664101]
[1747872508527,145.0,173.74,173.64,5.7564]
[1747872508914,145.0,173.74,173.59,156.39787418]
[1747872509323,0.03809978,173.68,173.65,0.04069807]
[1747872509826,0.03809978,173.68,173.67,5.7555]
[1747872510020,0.03809978,173.68,173.65,0.04069807]
[1747872510229,5.79359978,173.68,173.65,0.04069807]
[1747872510918,0.03809978,173.68,173.65,0.04069807]
[1747872511329,9.978e-05,173.68,173.67,5.7557]
[1747872516325,9.978e-05,173.68,173.67,175.5157]
[1747872518228,9.978e-05,173.68,173.67,509.0157]
[1747872518428,9.978e-05,173.68,173.67,673.0157]
[1747872518627,3.9453,173.82,173.74,9.95824101]
[1747872518829,1.9349,173.82,173.74,9.95824101]
[1747872519032,2.0104,173.81,173.75,5.7528]
[1747872519234,2.0104,173.81,173.71,144.94]
[1747872519732,5.7528,173.76,173.74,0.04168402]
[1747872519933,5.7528,173.76,173.7,154.89824101]
[1747872520430,5.7524,173.77,173.73,5.7536]
[1747872520632,0.03784715,173.78,173.7,154.89824101]
[1747872520929,0.03784715,173.78,173.75,5.7529]
[1747872521132,0.03784715,173.78,173.72,0.04395492]
[1747872521635,0.03784715,173.78,173.76,5.7525]
[1747872521840,0.03784715,173.78,173.72,0.04395492]
[1747872522438,0.03784715,173.78,173.73,1.43878282]
[1747872522635,5.79004715,173.78,173.74,5.7533]
[1747872522834,0.03784715,173.78,173.73,1.43878282]
[1747872523438,0.03784715,173.78,173.72,0.04395492]
[1747872525141,0.03784715,173.78,173.76,5.7525]
[1747872525337,0.03784715,173.78,173.72,0.04395492]
[1747872528249,0.03784715,173.78,173.77,1.2555983]
[1747872529044,0.03784715,173.78,173.76,0.03831177]
[1747872529544,5.78994715,173.78,173.76,0.03831177]
[1747872529839,5.78994715,173.78,173.74,5.7531]
[1747872530042,5.78994715,173.78,173.77,1.43890771]
[1747872530240,5.78994715,173.78,173.74,5.7531]
[1747872530638,0.03784715,173.78,173.77,5.7524]
[1747872530852,4.715e-05,173.78,173.77,5.7524]
[1747872531040,48.88001467,173.82,173.74,318.83815292]
[1747872531342,4.06631467,173.82,173.81,5.7511]
[1747872531944,1e-08,173.82,173.81,5.7511]
[1747872532139,85.3233344,173.84,173.8,144.84]
[1747872532140,2.04e-05,173.83,173.82,5.7508]
[1747872532532,2.04e-05,173.83,173.82,169.7508]
[1747872532837,2.04e-05,173.83,173.82,5.7508]
[1747872541640,2.04e-05,173.83,173.82,169.7508]
[1747872541835,2.04e-05,173.83,173.82,175.5108]
[1747872542438,85.27904878,174.14,173.84,163.9999796]
[1747872542644,3.9717,173.99,173.91,9.95824101]
[1747872542844,3.9717,173.99,173.92,144.74]
[1747872543037,3.9717,173.99,173.98,5.7455]
[1747872543439,3.9717,173.99,173.97,0.0441943]
[1747872543939,3.9717,173.99,173.98,5.7455]
[1747872544139,2.0734,173.99,173.98,5.7455]
[1747872544343,3.341e-05,174.0,173.97,144.7841943]
[1747872544546,3.341e-05,174.0,173.99,5.7451]
[1747872546446,3.341e-05,174.0,173.99,15.70334101]
[1747872547651,3.341e-05,174.0,173.97,0.0441943]
[1747872548750,3.341e-05,174.0,173.99,5.7451]
[1747872548951,3.341e-05,174.0,173.97,0.0441943]
[1747872549352,3.341e-05,174.0,173.98,5.7454]
[1747872549754,3.341e-05,174.0,173.97,0.0441943]
[1747872550051,3.341e-05,174.0,173.99,5.7451]
[1747872550355,3.341e-05,174.0,173.99,7.18190443]
[1747872550557,3.341e-05,174.0,173.99,17.14014544]
[1747872551155,3.341e-05,174.0,173.99,15.70334101]
[1747872554660,3.341e-05,174.0,173.99,5.7451]
[1747872554859,3.341e-05,174.0,173.99,11.4851]
[1747872555652,3.341e-05,174.0,173.99,150.1451]
[1747872557855,3.341e-05,174.0,173.99,138.0942]